bitfinex/quotes_SOLUSD_20250416
["timestamp","ask_amount","ask_price","bid_price","bid_amount"]
[1744832192567,82.8,129.88,129.86,7.70060064]
[1744832193272,116.95320508,129.9,129.86,7.70060064]
[1744832193479,82.8,129.9,129.86,26.95210225]
[1744832193663,82.8,129.9,129.87,34.15320508]
[1744832193865,82.8,129.9,129.86,41.85380572]
[1744832194781,34.15320508,129.89,129.86,7.70060064]
[1744832194977,116.95320508,129.9,129.86,7.70060064]
[1744832195181,82.8,129.9,129.86,41.85380572]
[1744832195479,82.8,129.9,129.87,34.15320508]
[1744832196076,82.8,129.9,129.86,41.85380572]
[1744832196264,116.95320508,129.9,129.86,41.85380572]
[1744832196463,82.8,129.9,129.86,41.85380572]
[1744832196661,82.8,129.9,129.88,34.15320508]
[1744832196873,82.83,129.93,129.89,34.15320508]
[1744832197163,82.83,129.93,129.9,34.15320508]
[1744832197956,82.83,129.93,129.89,34.15320508]
[1744832198474,82.83,129.93,129.9,34.15320508]
[1744832198665,82.83,129.93,129.91,7.69763682]
[1744832198858,82.83,129.93,129.9,41.85121975]
[1744832201191,82.83,129.93,129.91,34.15320508]
[1744832201479,0.03,129.93,129.92,34.15320508]
[1744832203267,0.03,129.93,129.92,41.85024941]
[1744832205986,0.03,129.98,129.96,6.4914]
[1744832206189,0.03,129.98,129.97,34.15320508]
[1744832207464,0.03,129.98,129.97,41.84728832]
[1744832207759,116.95320508,130.03,129.97,41.84728832]
[1744832207991,82.8,130.02,129.97,41.84728832]
[1744832208199,34.15320508,130.0,129.94,7.69585962]
[1744832208486,82.8,129.99,129.95,34.15320508]
[1744832208790,82.8,129.99,129.96,34.15320508]
[1744832209178,82.8,129.99,129.97,34.15320508]
[1744832209577,82.8,129.99,129.95,41.84828827]
[1744832210082,82.8,129.99,129.96,34.15320508]
[1744832210897,82.8,129.99,129.97,34.15320508]
[1744832211271,82.8,129.99,129.96,34.15320508]
[1744832211771,116.95320508,129.99,129.95,41.84822856]
[1744832212297,34.15320508,129.97,129.93,41.84945391]
[1744832212676,82.8,129.98,129.94,34.15320508]
[1744832212877,116.95320508,129.98,129.94,34.15320508]
[1744832213178,116.95320508,129.98,129.93,41.84945391]
[1744832213793,124.64682592,129.98,129.93,41.84945391]
[1744832214088,116.95320508,129.97,129.93,34.15320508]
[1744832214430,34.15320508,129.94,129.91,0.063]
[1744832214595,82.8,129.94,129.92,34.15320508]
[1744832215098,82.8,129.94,129.91,41.91380814]
[1744832216392,82.8,129.94,129.91,7.76060306]
[1744832216691,82.8,129.94,129.91,41.91380814]
[1744832217272,82.8,129.94,129.91,7.76052065]
[1744832217662,82.8,129.94,129.91,0.063]
[1744832217865,82.8,129.94,129.91,34.21620508]
[1744832218062,82.8,129.94,129.92,34.15320508]
[1744832218819,82.8,129.94,129.91,34.21620508]
[1744832219109,116.95320508,129.94,129.91,0.063]
[1744832219419,116.95320508,129.93,129.91,0.063]
[1744832219712,82.8,129.93,129.91,0.063]
[1744832220024,116.95320508,129.93,129.91,0.063]
[1744832220221,135.74501551,129.92,129.91,0.063]
[1744832220386,61.47833865,129.92,129.91,0.063]
[1744832220585,26.0,129.89,129.83,41.85554186]
[1744832220789,135.91320508,129.88,129.83,41.85554186]
[1744832221194,135.91320508,129.88,129.84,34.15320508]
[1744832221404,135.91320508,129.88,129.83,41.85554186]
[1744832222288,101.76,129.88,129.84,34.15320508]
[1744832222489,101.76,129.88,129.85,34.15320508]
[1744832222888,116.95320508,129.87,129.83,41.85554186]
[1744832223322,82.8,129.87,129.84,34.15320508]
[1744832223820,82.8,129.87,129.85,7.70119368]
[1744832224119,82.8,129.87,129.8,0.063]
[1744832224120,82.8,129.87,129.81,19.25868231]
[1744832224291,116.95320508,129.87,129.82,34.15320508]
[1744832224492,116.95320508,129.87,129.83,34.15320508]
[1744832224694,116.95320508,129.87,129.82,34.15320508]
[1744832225094,116.95320508,129.87,129.83,34.15320508]
[1744832225319,34.15320508,129.86,129.81,61.11545414]
[1744832225514,82.8,129.85,129.84,34.15320508]
[1744832225820,18.96,129.88,129.85,7.70119368]
[1744832226122,53.11320508,129.88,129.85,7.70119368]
[1744832226306,18.96,129.88,129.85,7.70119368]
[1744832228120,18.96,129.88,129.85,41.85439876]
[1744832228326,82.8,129.9,129.87,34.15320508]
[1744832228513,18.96,129.93,129.89,34.15320508]
[1744832228716,18.96,129.93,129.92,34.15320508]
[1744832229018,18.96,129.93,129.9,34.15320508]
[1744832229818,116.95320508,129.92,129.87,34.15320508]
[1744832230120,34.15320508,129.89,129.85,41.85439876]
[1744832230321,34.15320508,129.88,129.85,7.70119368]
[1744832230503,34.15320508,129.89,129.85,7.70119368]
[1744832231521,34.15320508,129.89,129.85,41.85439876]
[1744832231720,18.64964886,129.9,129.85,41.85439876]
[1744832231894,34.15320508,129.9,129.86,34.15320508]
[1744832232091,34.15320508,129.89,129.85,41.85439876]
[1744832232296,52.94501551,129.9,129.85,41.85439876]
[1744832232616,117.09536665,129.91,129.86,34.15320508]
[1744832232813,82.8,129.91,129.9,34.15320508]
[1744832233134,41.94290508,129.96,129.9,34.15320508]
[1744832233299,35.66330508,129.96,129.92,34.15320508]
[1744832233500,35.66330508,129.96,129.92,7.69704433]
[1744832233706,34.15320508,129.95,129.92,7.69704433]
[1744832233897,54.31295394,129.96,129.92,7.69704433]
[1744832234098,52.94501551,129.94,129.87,7.588]
[1744832234309,116.95320508,129.93,129.88,7.69941484]
[1744832234510,82.8,129.93,129.9,34.15320508]
[1744832235118,116.95320508,129.93,129.89,34.15320508]
[1744832235619,34.15320508,129.92,129.88,41.85261992]
[1744832235817,34.15320508,129.9,129.85,41.85439876]
[1744832236022,34.15320508,129.89,129.85,41.85439876]
[1744832236327,34.15320508,129.88,129.85,7.70119368]
[1744832236821,116.95320508,129.89,129.85,7.70119368]
[1744832237010,116.95320508,129.89,129.85,41.85439876]
[1744832237213,82.8,129.89,129.86,34.15320508]
[1744832238134,82.8,129.89,129.85,61.10738297]
[1744832238424,82.8,129.89,129.87,34.15320508]
[1744832238719,82.8,129.89,129.88,34.15320508]
[1744832238927,82.8,129.91,129.88,34.15320508]
[1744832239530,82.8,129.91,129.89,34.15320508]
[1744832240334,18.94,129.92,129.9,34.15320508]
[1744832241529,18.94,129.92,129.91,7.69763682]
[1744832242328,53.09320508,129.92,129.87,7.7000077]
[1744832242719,53.09320508,129.92,129.87,41.85321278]
[1744832243132,34.15320508,129.9,129.87,7.7000077]
[1744832243325,34.15320508,129.9,129.86,7.70033321]
[1744832243529,34.15320508,129.9,129.84,26.95606385]
[1744832243717,116.95320508,129.89,129.84,26.95606385]
[1744832243913,116.95320508,129.89,129.85,34.15320508]
[1744832244458,34.15320508,129.88,129.84,41.85499189]
[1744832244942,116.95320508,129.87,129.83,34.15320508]
[1744832245111,82.8,129.86,129.83,7.70212256]
[1744832245311,82.8,129.86,129.84,34.15320508]
[1744832245526,82.8,129.86,129.85,7.70119368]
[1744832245843,82.8,129.91,129.85,61.10738297]
[1744832246046,82.8,129.91,129.88,34.15320508]
[1744832247527,82.8,129.91,129.89,7.69882208]
[1744832247725,18.94,129.92,129.89,41.85202716]
[1744832248445,18.94,129.92,129.89,7.69882208]
[1744832249717,53.09320508,129.92,129.89,7.69882208]
[1744832250327,34.15320508,129.91,129.85,7.70119368]
[1744832250530,34.15320508,129.89,129.85,7.70119368]
[1744832250837,34.15320508,129.88,129.85,7.70119368]
[1744832251043,34.15320508,129.88,129.82,19.25715593]
[1744832251044,34.15320508,129.87,129.83,7.70238003]
[1744832251441,82.8,129.88,129.85,34.15320508]
[1744832251633,82.8,129.88,129.86,7.70060064]
[1744832253235,116.95320508,129.88,129.84,7.70178681]
[1744832253629,82.8,129.88,129.85,34.15320508]
[1744832253836,82.8,129.88,129.85,7.70119368]
[1744832254647,82.8,129.9,129.86,34.15320508]
[1744832255243,82.8,129.9,129.87,34.15320508]
[1744832255451,82.8,129.9,129.88,34.15320508]
[1744832255630,18.94,129.92,129.89,34.15320508]
[1744832255834,18.94,129.92,129.9,7.6982294]
[1744832256623,82.8,129.93,129.9,7.6982294]
[1744832256624,82.8,129.95,129.91,34.15320508]
[1744832256927,82.8,129.95,129.9,26.94380291]
[1744832257128,82.8,129.95,129.92,34.15320508]
[1744832257830,82.8,129.95,129.93,7.69645193]
[1744832258031,0.03,129.98,129.94,34.15320508]
[1744832258229,0.03,129.98,129.93,7.69645193]
[1744832258438,0.03,129.98,129.9,53.39758818]
[1744832258439,34.15320508,129.96,129.92,41.8500551]
[1744832258749,0.03,129.98,129.94,34.15320508]
[1744832258964,0.03,129.98,129.97,34.15320508]
[1744832259959,0.03,129.98,129.97,41.84728832]
[1744832261725,0.03,130.02,129.97,87.08249644]
[1744832261929,0.03,130.02,130.01,34.15320508]
[1744832262527,0.03,130.02,130.0,34.15320508]
[1744832262949,0.03,130.02,129.97,7.69408324]
[1744832263254,0.03,130.02,129.99,34.15320508]
[1744832263959,0.03,130.02,130.0,41.84551277]
[1744832264534,0.03,130.02,130.0,34.15320508]
[1744832266135,0.03,130.02,130.0,41.84541306]
[1744832267233,0.03,130.02,129.96,7.69467528]
[1744832267447,34.18320508,130.02,129.97,34.15320508]
[1744832267655,34.15320508,129.98,129.91,25.4248]
[1744832267862,34.15320508,129.99,129.94,34.15320508]
[1744832268156,34.15320508,129.99,129.95,34.15320508]
[1744832268763,41.84555255,130.0,129.95,34.15320508]
[1744832269058,34.15320508,129.99,129.95,34.15320508]
[1744832270455,82.8,130.01,129.98,34.15320508]
[1744832270754,82.8,130.01,129.95,7.69521541]
[1744832270755,82.8,130.01,129.99,34.15320508]
[1744832270956,0.03,130.02,130.0,34.15320508]
[1744832271458,0.03,130.02,129.99,34.15320508]
[1744832272156,0.03,130.02,130.01,34.15320508]
[1744832272669,0.03,130.02,130.0,34.15320508]
[1744832273052,0.03,130.02,129.99,7.69289945]
[1744832273246,34.15320508,130.0,129.96,34.15320508]
[1744832273645,82.8,130.01,129.97,34.15320508]
[1744832273948,116.95320508,130.01,129.97,34.15320508]
[1744832274157,116.95320508,130.01,129.96,41.84788036]
[1744832274863,34.15320508,130.0,129.96,41.84788036]
[1744832275062,34.15320508,130.0,129.96,7.69467528]
[1744832275258,34.15320508,130.0,129.96,41.84788036]
[1744832275457,116.95320508,130.01,129.96,41.84788036]
[1744832276452,82.8,130.01,129.97,34.15320508]
[1744832276656,82.8,130.01,129.98,34.15320508]
[1744832276869,34.15320508,129.99,129.95,41.84847249]
[1744832277076,34.15320508,130.0,129.95,41.84847249]
[1744832277457,116.95320508,130.01,129.97,34.15320508]
[1744832277749,116.95320508,130.01,129.96,34.15320508]
[1744832279065,34.15320508,130.0,129.97,7.69408324]
[1744832279261,34.15320508,130.0,129.96,34.15320508]
[1744832279461,34.15320508,130.0,129.96,41.84765539]
[1744832279971,116.95320508,130.01,129.96,41.84765539]
[1744832280357,82.8,130.01,129.97,34.15320508]
[1744832280559,116.95320508,130.01,129.97,34.15320508]
[1744832280760,34.15320508,129.99,129.96,7.69445031]
[1744832281164,34.15320508,130.0,129.96,7.69445031]
[1744832281883,82.8,130.01,129.97,34.15320508]
[1744832282047,0.03,130.02,130.0,34.15320508]
[1744832282449,34.15320508,130.01,129.96,26.93113852]
[1744832282750,34.15320508,129.99,129.96,7.69445031]
[1744832282952,116.95320508,130.0,129.96,41.84765539]
[1744832283152,82.8,130.0,129.96,41.84765539]
[1744832283352,34.15320508,129.99,129.95,7.69507437]
[1744832283567,116.95320508,129.99,129.95,7.69507437]
[1744832283871,116.95320508,129.99,129.94,41.8490647]
[1744832284574,34.15320508,129.97,129.94,7.69585962]
[1744832284760,34.15320508,129.96,129.94,7.69585962]
[1744832284964,116.95320508,129.98,129.94,7.69585962]
[1744832285477,82.8,129.98,129.95,34.15320508]
[1744832285673,82.8,129.98,129.96,41.84788036]
[1744832285874,82.8,130.01,129.97,34.15320508]
[1744832286077,0.03,130.02,130.0,34.15320508]
[1744832286572,0.03,130.02,130.01,34.15320508]
[1744832287072,0.03,130.02,130.0,34.15320508]
[1744832287673,0.03,130.02,130.01,7.69171602]
[1744832287978,0.03,130.02,130.01,41.8449211]
[1744832289571,0.03,130.02,130.01,7.69171602]
[1744832289989,0.03,130.02,130.01,41.8449211]
[1744832291164,0.03,130.02,130.01,7.69171602]
[1744832291366,0.03,130.02,130.01,41.8449211]
[1744832292286,0.03,130.02,129.99,41.84584964]
[1744832292489,0.03,130.02,129.99,7.69264456]
[1744832292773,0.03,130.02,129.99,41.84584964]
[1744832294296,0.03,130.02,130.0,34.15320508]
[1744832294788,0.03,130.02,130.01,34.15320508]
[1744832294982,0.03,130.02,130.0,34.15320508]
[1744832296382,0.03,130.02,130.0,41.8450737]
[1744832296974,0.03,130.02,130.01,34.15320508]
[1744832298294,1e-08,130.02,130.01,77.62112618]
[1744832298490,1e-08,130.02,130.01,43.4679211]
[1744832298775,1e-08,130.02,130.01,107.62112618]
[1744832299984,1.0,130.1,130.08,26.0]
[1744832300183,1.0,130.1,130.09,41.84019101]
[1744832301060,1.0,130.1,130.09,34.15320508]
[1744832301281,1.0,130.1,130.09,41.84019101]
[1744832302894,1.0,130.1,130.09,71.84019101]
[1744832303398,1.0,130.1,130.09,30.0]
[1744832304695,1.0,130.1,130.09,71.84019101]
[1744832306077,1.0,130.1,130.09,64.15320508]
[1744832306273,1.0,130.1,130.09,30.0]
[1744832307079,35.15320508,130.1,130.09,30.0]
[1744832307379,42.83960016,130.1,130.09,30.0]
[1744832307585,1.0,130.1,130.09,30.0]
[1744832308183,1.0,130.1,130.08,7.68723706]
[1744832308377,1.0,130.1,130.09,34.15320508]
[1744832308577,1.0,130.1,130.09,41.84019101]
[1744832308787,1.0,130.1,130.09,71.84019101]
[1744832311193,1.0,130.1,130.09,30.0]
[1744832311566,1.0,130.1,130.09,37.68698593]
[1744832311779,1.0,130.1,130.09,71.84019101]
[1744832314077,1.0,130.1,130.09,64.15320508]
[1744832314278,1.0,130.1,130.09,71.84019101]
[1744832322698,1.0,130.1,130.09,97.84019101]
[1744832323713,1.5682,130.23,130.15,26.0]
[1744832323891,34.15320508,130.25,130.2,34.15320508]
[1744832324210,34.15320508,130.25,130.21,34.15320508]
[1744832324624,82.8,130.26,130.23,34.15320508]
[1744832324788,40.22310508,130.27,130.22,34.15320508]
[1744832324989,34.15320508,130.26,130.22,34.15320508]
[1744832325206,6.0699,130.27,130.22,34.15320508]
[1744832325405,34.15320508,130.26,130.22,41.83196946]
[1744832325606,34.15320508,130.25,130.19,7.68108149]
[1744832325889,34.15320508,130.25,130.2,64.15320508]
[1744832326090,34.15320508,130.26,130.21,34.15320508]
[1744832326290,34.15320508,130.25,130.21,34.15320508]
[1744832326590,18.933972,130.25,130.2,30.0]
[1744832326803,34.15320508,130.23,130.2,30.0]
[1744832327121,34.18320508,130.24,130.2,64.15320508]
[1744832327416,34.18320508,130.24,130.2,71.83318577]
[1744832328191,86.95605902,130.21,130.2,30.0]
[1744832328393,86.95605902,130.21,130.11,41.83900939]
[1744832328394,69.95117173,130.21,130.11,41.83900939]
[1744832328604,34.15320508,130.16,130.11,7.68580431]
[1744832328898,34.15320508,130.17,130.12,34.15320508]
[1744832329307,34.15320508,130.17,130.13,34.15320508]
[1744832329623,34.15320508,130.17,130.14,7.68403258]
[1744832330290,34.15320508,130.19,130.14,41.83723766]
[1744832331083,34.15320508,130.18,130.14,41.83723766]
[1744832331801,34.15320508,130.19,130.15,34.15320508]
[1744832332315,34.15320508,130.18,130.14,41.83723766]
[1744832332994,34.15320508,130.17,130.14,7.68403258]
[1744832333396,34.15320508,130.17,130.13,41.83766651]
[1744832333692,34.15320508,130.16,130.12,41.83829198]
[1744832334016,34.15320508,130.14,130.1,41.83933702]
[1744832334215,34.15320508,130.16,130.11,34.15320508]
[1744832334415,116.95320508,130.17,130.13,34.15320508]
[1744832334715,82.8,130.17,130.13,34.15320508]
[1744832334919,34.15320508,130.18,130.14,34.15320508]
[1744832335222,52.95320508,130.19,130.14,34.15320508]
[1744832335386,34.15320508,130.18,130.13,34.15320508]
[1744832335586,41.83498957,130.18,130.13,41.83777364]
[1744832336118,34.15320508,130.14,130.1,7.68589143]
[1744832336318,34.15320508,130.13,130.07,8.2384]
[1744832336521,34.15320508,130.09,130.05,34.15320508]
[1744832336688,34.15320508,130.1,130.05,34.15320508]
[1744832336892,34.15320508,130.11,130.06,34.15320508]
[1744832337391,82.8,130.12,130.06,34.15320508]
[1744832337596,82.8,130.12,130.05,7.68935024]
[1744832337597,82.8,130.12,130.09,34.15320508]
[1744832337800,82.8,130.12,130.08,34.15320508]
[1744832338011,124.63863029,130.12,130.07,34.15320508]
[1744832338606,34.15320508,130.11,130.06,34.15320508]
[1744832339222,41.83911855,130.11,130.06,41.841478]
[1744832339400,82.8,130.1,130.06,41.8419532]
[1744832339608,116.95320508,130.1,130.06,34.15320508]
[1744832339808,116.95320508,130.1,130.06,41.84189753]
[1744832340194,34.15320508,130.09,130.02,41.84389975]
[1744832340396,82.8,130.08,130.02,41.84389975]
[1744832340630,90.48526918,130.12,130.02,41.84389975]
[1744832340801,34.15320508,130.1,130.06,34.15320508]
[1744832341123,34.15320508,130.11,130.06,34.15320508]
[1744832341314,124.63847426,130.12,130.07,41.84124482]
[1744832341626,34.15320508,130.11,130.06,41.84173756]
[1744832342194,124.63847426,130.12,130.07,34.15320508]
[1744832342500,124.63847426,130.12,130.08,34.15320508]
[1744832342900,124.63847426,130.12,130.07,34.15320508]
[1744832343421,82.8,130.12,130.1,34.15320508]
[1744832343613,135.75320508,130.14,130.1,34.15320508]
[1744832343797,34.15320508,130.13,130.09,34.15320508]
[1744832344004,34.15320508,130.11,130.06,7.68853248]
[1744832344200,82.8,130.12,130.06,7.68853248]
[1744832344401,82.8,130.12,130.1,34.15320508]
[1744832344621,60.63730422,130.14,130.1,34.15320508]
[1744832344930,18.8,130.14,130.1,34.15320508]
[1744832345300,18.8,130.14,130.1,41.83949648]
[1744832345618,60.6374361,130.14,130.09,41.84010614]
[1744832345794,18.8,130.14,130.1,34.15320508]
[1744832345998,34.15320508,130.13,130.09,34.15320508]
[1744832346226,34.15320508,130.11,130.05,8.0693]
[1744832346427,34.15320508,130.11,130.06,34.15320508]
[1744832346622,34.15320508,130.1,130.06,34.15320508]
[1744832346927,41.84004083,130.1,130.05,41.84229527]
[1744832347223,34.15320508,130.11,130.07,34.15320508]
[1744832347523,34.15320508,130.1,130.06,34.15320508]
[1744832347728,34.15320508,130.11,130.06,34.15320508]
[1744832348018,34.15320508,130.1,130.05,41.84229527]
[1744832348230,0.28432314,130.12,130.05,7.68909019]
[1744832348525,82.8,130.13,130.11,34.15320508]
[1744832349306,82.8,130.13,130.1,7.68633458]
[1744832349514,82.8,130.13,130.1,41.83953966]
[1744832349913,82.8,130.13,130.11,34.15320508]
[1744832350602,82.8,130.13,130.09,34.15320508]
[1744832351223,82.8,130.13,130.11,34.15320508]
[1744832352036,82.8,130.13,130.1,34.15320508]
[1744832352617,34.15320508,130.11,130.06,34.15320508]
[1744832352921,34.15320508,130.08,130.03,41.84373803]
[1744832353322,34.15320508,130.08,130.03,7.69053295]
[1744832353527,34.15320508,130.08,130.03,41.84373803]
[1744832353727,34.15320508,130.07,130.03,7.69053295]
[1744832353919,34.15320508,130.06,130.02,41.84414131]
[1744832354120,7.68764016,130.08,130.02,41.84414131]
[1744832354121,34.15320508,130.07,130.02,41.84414131]
[1744832354707,82.8,130.1,130.05,34.15320508]
[1744832354930,116.95320508,130.1,130.05,34.15320508]
[1744832355121,34.15320508,130.07,130.03,34.15320508]
[1744832355311,34.15320508,130.07,130.03,41.84346911]
[1744832355507,34.15320508,130.08,130.03,41.84346911]
[1744832356337,34.15320508,130.07,130.02,7.69112444]
[1744832356629,34.15320508,130.08,130.04,34.15320508]
[1744832357010,41.8408042,130.08,130.03,34.15320508]
[1744832357203,34.15320508,130.07,130.03,34.15320508]
[1744832357407,41.8408042,130.08,130.03,34.15320508]
[1744832357631,34.15320508,130.07,130.02,41.84432952]
[1744832357848,82.8,130.09,130.01,0.063]
[1744832357849,52.80285394,130.03,130.01,0.063]
[1744832358014,87.24038216,130.02,130.01,0.063]
[1744832358523,95.07366817,130.02,130.01,0.063]
[1744832360336,7.69053295,130.03,130.01,0.063]
[1744832360510,1.6657,130.04,130.01,0.063]
[1744832360710,34.15320508,130.03,130.01,0.063]
[1744832363428,34.15320508,130.02,130.01,0.063]
[1744832364138,7.69003163,130.04,130.01,0.063]
[1744832364314,34.15320508,130.02,130.01,0.063]
[1744832364920,94.9315066,130.02,130.01,0.063]
[1744832365211,0.14216157,130.0,129.95,0.063]
[1744832365415,34.15320508,129.96,129.95,0.063]
[1744832366739,135.75320508,129.99,129.95,0.063]
[1744832366923,34.15320508,129.97,129.95,0.063]
[1744832367433,82.8,129.98,129.95,0.063]
[1744832369021,82.8,129.98,129.95,34.21620508]
[1744832369336,34.15320508,130.01,129.97,34.15320508]
[1744832369547,82.8,130.12,130.0,76.15241016]
[1744832369727,7.68580431,130.11,130.07,34.15320508]
[1744832370042,41.83900939,130.11,130.06,34.15320508]
[1744832370339,124.63861443,130.12,130.07,34.15320508]
[1744832370934,86.60385034,130.12,130.08,34.15320508]
[1744832371130,82.8,130.15,130.11,34.15320508]
[1744832371844,82.8,130.15,130.08,40.76840508]
[1744832372139,82.8,130.15,130.11,34.15320508]
[1744832372350,82.8,130.15,130.12,34.15320508]
[1744832372531,82.8,130.15,130.11,34.15320508]
[1744832373137,82.8,130.15,130.12,34.15320508]
[1744832373538,7.68088884,130.2,130.14,34.15320508]
[1744832373732,34.15320508,130.19,130.14,34.15320508]
[1744832374321,18.64964886,130.19,130.14,34.15320508]
[1744832374622,34.15320508,130.18,130.14,34.15320508]
[1744832376023,34.15320508,130.2,130.16,34.15320508]
[1744832376439,34.15320508,130.2,130.15,34.15320508]
[1744832377618,34.15320508,130.2,130.16,34.15320508]
[1744832377838,41.83373078,130.2,130.16,34.15320508]
[1744832378829,41.83325326,130.21,130.16,34.15320508]
[1744832379036,34.15320508,130.2,130.15,34.15320508]
[1744832379946,34.15320508,130.19,130.14,34.15320508]
[1744832380134,34.15320508,130.18,130.11,44.8]
[1744832380331,34.15320508,130.19,130.15,34.15320508]
[1744832380638,41.83490884,130.18,130.13,34.15320508]
[1744832380839,7.68170376,130.18,130.14,34.15320508]
[1744832381227,41.83490884,130.18,130.14,34.15320508]
[1744832382152,7.68170376,130.18,130.14,34.15320508]
[1744832382323,41.83490884,130.18,130.12,7.6850641]
[1744832382525,41.83490884,130.18,130.14,34.15320508]
[1744832383038,41.834423,130.19,130.14,34.15320508]
[1744832383239,34.15320508,130.18,130.13,34.15320508]
[1744832383850,26.33086678,130.19,130.14,34.15320508]
[1744832383851,41.834423,130.19,130.14,34.15320508]
[1744832384049,41.834423,130.19,130.15,34.15320508]
[1744832384351,82.8,130.18,130.15,34.15320508]
[1744832384551,82.8,130.18,130.14,7.68403169]
[1744832384552,82.8,130.18,130.17,34.15320508]
[1744832385057,82.8,130.18,130.14,7.68403169]
[1744832385256,82.7338,130.18,130.17,34.15320508]
[1744832387840,82.7338,130.18,130.17,41.83546673]
[1744832388033,82.7338,130.18,130.17,34.15320508]
[1744832388553,82.7338,130.18,130.17,41.83546673]
[1744832388746,82.7338,130.18,130.17,34.15320508]
[1744832389144,82.7338,130.21,130.17,41.83544876]
[1744832389346,0.03,130.24,130.2,68.30641016]
[1744832389565,0.03,130.24,130.23,34.15320508]
[1744832390052,0.03,130.24,130.22,34.15320508]
[1744832390353,0.03,130.24,130.22,41.83244694]
[1744832391553,0.03,130.24,130.23,34.15320508]
[1744832392627,0.03,130.24,130.22,34.15320508]
[1744832393061,116.88700508,130.23,130.16,7.5577]
[1744832393266,34.15320508,130.2,130.16,7.68282509]
[1744832393633,116.88700508,130.21,130.17,34.15320508]
[1744832393843,82.7338,130.21,130.17,34.15320508]
[1744832394456,82.7338,130.21,130.2,34.15320508]
[1744832394639,124.56588326,130.23,130.19,34.15320508]
[1744832394840,124.56588326,130.23,130.18,41.83482453]
[1744832395040,82.7338,130.23,130.2,34.15320508]
[1744832395764,34.15320508,130.22,130.14,53.36322222]
[1744832396061,124.56580795,130.23,130.18,34.15320508]
[1744832396233,116.88700508,130.22,130.18,34.15320508]
[1744832396430,116.88700508,130.22,130.17,34.15320508]
[1744832396665,82.7338,130.22,130.18,34.15320508]
[1744832396864,34.15320508,130.21,130.17,34.15320508]
[1744832397059,124.56641134,130.22,130.17,34.15320508]
[1744832397247,124.56641134,130.22,130.18,34.15320508]
[1744832397660,124.56641134,130.22,130.17,34.15320508]
[1744832398068,34.15320508,130.21,130.16,34.15320508]
[1744832398260,116.88700508,130.2,130.15,7.68344218]
[1744832398465,116.88700508,130.2,130.15,41.83664726]
[1744832399266,116.88700508,130.2,130.16,34.15320508]
[1744832400167,124.56757619,130.2,130.15,7.68344218]
[1744832400378,124.56757619,130.2,130.15,41.83664726]
[1744832400969,116.88700508,130.2,130.16,34.15320508]
[1744832401169,82.7338,130.2,130.18,34.15320508]
[1744832401350,90.41324425,130.22,130.16,34.15320508]
[1744832401550,34.15320508,130.21,130.16,34.15320508]
[1744832401763,34.15320508,130.2,130.16,34.15320508]
[1744832401969,116.88700508,130.22,130.17,34.15320508]
[1744832402175,82.7338,130.22,130.2,34.15320508]
[1744832402383,82.7338,130.22,130.21,34.15320508]
[1744832402568,116.88700508,130.22,130.17,34.15320508]
[1744832402877,116.88700508,130.21,130.16,34.15320508]
[1744832403056,116.88700508,130.21,130.17,34.15320508]
[1744832403371,116.88700508,130.21,130.17,41.83538621]
[1744832403570,82.7338,130.21,130.18,34.15320508]
[1744832403775,82.7338,130.21,130.19,34.15320508]
[1744832405356,82.7338,130.21,130.18,34.15320508]
[1744832405752,82.7338,130.21,130.16,7.68285187]
[1744832405753,82.7338,130.21,130.19,34.15320508]
[1744832406074,82.7338,130.21,130.2,34.15320508]
[1744832406265,82.7338,130.23,130.2,34.15320508]
[1744832407079,82.7338,130.23,130.21,34.15320508]
[1744832407371,0.03,130.24,130.21,41.83309721]
[1744832407576,0.03,130.24,130.22,34.15320508]
[1744832407758,0.03,130.24,130.23,34.15320508]
[1744832408257,0.03,130.24,130.21,7.67989213]
[1744832408457,0.03,130.24,130.22,34.15320508]
[1744832408668,0.03,130.24,130.19,7.68088675]
[1744832408987,34.15320508,130.22,130.18,7.68155528]
[1744832409147,82.7338,130.22,130.18,7.68155528]
[1744832409482,82.7338,130.22,130.19,34.15320508]
[1744832411283,82.7338,130.22,130.21,34.15320508]
[1744832411468,0.03,130.24,130.21,34.15320508]
[1744832411790,0.03,130.24,130.23,34.15320508]
[1744832412486,0.03,130.24,130.22,34.15320508]
[1744832412684,0.03,130.24,130.2,34.15320508]